bitfinex-derivatives/quotes_ETHF0:USTF0_20241207
["timestamp","ask_amount","ask_price","bid_price","bid_amount"]
[1733581471547,3.2078,3990.9,3990.3,3.93092005]
[1733581471737,0.17524,3990.2,3990.1,3.2078]
[1733581471934,0.84824,3990.2,3990.1,3.2078]
[1733581472442,0.17525,3989.9,3989.8,0.4102]
[1733581475549,1.96635017,3990.0,3989.8,0.4102]
[1733581475737,0.673,3990.1,3989.8,0.4102]
[1733581475937,0.17525,3989.9,3989.8,0.4102]
[1733581477441,0.17525,3989.9,3989.8,0.58546]
[1733581477641,0.17525,3989.9,3989.8,0.4102]
[1733581478239,1.96635017,3990.0,3989.4,3.93092005]
[1733581478440,0.17527,3989.5,3989.4,0.7822]
[1733581478643,0.17527,3989.5,3989.4,0.95748]
[1733581478849,2.36895017,3990.0,3989.4,0.95748]
[1733581479147,0.17527,3989.6,3989.4,0.95748]
[1733581479346,2.36895017,3990.0,3989.4,0.7822]
[1733581479535,0.17527,3989.7,3989.5,0.17527]
[1733581479735,2.36895017,3990.0,3989.5,0.17527]
[1733581479940,0.17527,3989.6,3989.5,0.17527]
[1733581480942,0.17527,3989.5,3989.4,0.95747]
[1733581481249,2.36895017,3990.0,3989.5,0.17527]
[1733581481250,0.17527,3989.6,3989.5,0.17527]
[1733581481546,1.96635017,3990.0,3989.4,4.71312005]
[1733581481547,0.17527,3989.5,3989.4,4.71312005]
[1733581481750,0.17527,3989.5,3989.4,0.7822]
[1733581481951,0.17527,3989.5,3989.4,0.95748]
[1733581482447,1.96635017,3990.0,3989.4,0.7822]
[1733581482654,0.17527,3989.6,3989.5,0.17527]
[1733581482848,0.17527,3989.5,3989.4,4.88839005]
[1733581483349,1.96635017,3990.0,3989.4,4.71312005]
[1733581483742,0.17527,3989.6,3989.5,0.17527]
[1733581484947,3.8808,3990.1,3989.4,0.7822]
[1733581485251,0.90465602,3989.8,3989.4,4.71312005]
[1733581485449,0.17526,3989.8,3989.7,0.17526]
[1733581486453,1.07991602,3989.9,3989.8,0.17526]
[1733581490352,1.07991602,3989.9,3989.4,5.15132005]
[1733581490353,0.4073,3990.3,3989.7,3.2078]
[1733581490658,1.07990602,3990.1,3990.0,0.17525]
[1733581492858,0.90465602,3990.1,3990.0,0.17525]
[1733581493059,1.07990602,3990.1,3990.0,0.17525]
[1733581494460,0.17527,3989.5,3989.4,4.71162757]
[1733581494652,0.17527,3989.5,3989.4,0.7822]
[1733581494857,0.17527,3989.5,3989.4,0.95748]
[1733581495157,1.45852602,3989.5,3989.4,0.95748]
[1733581495351,1.85212602,3989.5,3989.4,0.95748]
[1733581496253,1.85212602,3989.5,3989.4,0.7822]
[1733581496651,2.90815513,3989.5,3989.4,0.7822]
[1733581497261,2.90815513,3989.5,3989.4,0.95748]
[1733581497754,2.90815513,3989.5,3989.4,0.7822]
[1733581498153,2.90815513,3989.5,3989.4,0.95748]
[1733581498352,2.90815513,3989.5,3989.4,0.7822]
[1733581498555,2.90815513,3989.5,3989.4,0.95748]
[1733581498956,2.90815513,3989.5,3989.4,0.7822]
[1733581499363,2.90815513,3989.5,3989.4,0.95748]
[1733581499663,2.90815513,3989.5,3989.4,0.7822]
[1733581500360,2.90815513,3989.5,3989.4,0.95748]
[1733581501569,2.90815513,3989.5,3989.4,0.7822]
[1733581501759,2.90815513,3989.5,3989.4,0.95748]
[1733581502255,2.90815513,3989.5,3989.4,0.7822]
[1733581502662,2.90815513,3989.5,3989.4,0.95748]
[1733581502857,2.73288513,3989.5,3989.3,3.2078]
[1733581503059,0.17528,3989.4,3989.3,3.2078]
[1733581504462,0.17529,3989.0,3988.9,0.3833]
[1733581504666,2.13597513,3989.0,3988.9,0.3833]
[1733581506257,0.1753,3988.9,3988.8,3.2078]
[1733581506457,0.5566,3988.9,3988.8,3.2078]
[1733581508372,0.3813,3988.9,3988.8,3.2078]
[1733581508577,0.5566,3988.9,3988.8,3.2078]
[1733581509466,0.3813,3988.9,3988.6,0.17531]
[1733581509669,0.17531,3988.7,3988.5,0.95601]
[1733581510277,1.0838,3988.8,3988.5,0.7807]
[1733581510579,0.17531,3988.7,3988.5,0.95601]
[1733581511071,1.0838,3988.8,3988.5,0.7807]
[1733581511272,1.2591,3988.8,3988.5,0.7807]
[1733581511677,1.2591,3988.8,3988.6,0.17531]
[1733581511878,1.2591,3988.8,3988.5,0.7807]
[1733581512183,1.2591,3988.8,3988.6,0.17531]
[1733581512381,0.3813,3988.9,3988.5,0.7807]
[1733581512581,0.673,3988.8,3988.5,0.7807]
[1733581512872,0.673,3988.8,3988.7,0.17531]
[1733581513182,0.8483,3988.8,3988.6,0.17531]
[1733581513674,0.673,3988.8,3988.5,0.7807]
[1733581513881,2.13599513,3988.6,3988.5,0.7807]
[1733581515083,2.13599513,3988.6,3988.5,0.3913]
[1733581516479,1.08057098,3988.6,3988.5,0.3913]
[1733581517078,4.28837098,3988.6,3988.5,0.3913]
[1733581519780,0.17533,3988.2,3988.1,0.3784]
[1733581519978,1.57826098,3988.2,3987.7,3.9298998]
[1733581520183,0.90526098,3987.9,3987.6,7.1376998]
[1733581520483,1.08061098,3987.9,3987.6,3.2078]
[1733581520686,0.90526098,3987.9,3987.6,3.2078]
[1733581522984,0.90526098,3987.9,3987.7,0.17535]
[1733581523292,0.90526098,3987.9,3987.6,3.38315]
[1733581523588,1.08060098,3987.9,3987.6,3.38315]
[1733581523783,0.90526098,3987.9,3987.6,3.38315]
[1733581524084,1.08060098,3987.9,3987.6,3.2078]
[1733581524588,1.08060098,3987.9,3987.6,0.17535]
[1733581524783,0.90526098,3987.9,3987.6,3.38315]
[1733581524980,1.08061098,3987.9,3987.6,3.38315]
[1733581526185,0.90526098,3987.9,3987.6,3.2078]
[1733581526581,0.90526098,3987.9,3987.7,0.17535]
[1733581527087,0.90526098,3987.9,3987.8,0.57465]
[1733581527283,1.08060098,3987.9,3987.8,0.57465]
[1733581527679,0.90526098,3987.9,3987.8,0.57465]
[1733581527882,0.90526098,3987.9,3987.8,0.3993]
[1733581528078,0.90526098,3987.9,3987.8,0.57465]
[1733581528277,0.90526098,3987.9,3987.8,0.3993]
[1733581528483,0.90526098,3987.9,3987.8,0.57465]
[1733581528890,1.08060098,3987.9,3987.8,0.3993]
[1733581529478,0.673,3987.9,3987.8,0.3993]
[1733581529686,1.75360098,3987.9,3987.8,0.3993]
[1733581531885,1.57826098,3987.9,3987.8,0.57465]
[1733581532090,1.75360098,3987.9,3987.8,0.57465]
[1733581533783,1.57826098,3987.9,3987.8,0.57465]
[1733581534195,1.75360098,3987.9,3987.8,0.3993]
[1733581534391,1.75360098,3987.9,3987.8,0.57465]
[1733581534983,1.75360098,3987.9,3987.6,3.2078]
[1733581534984,1.57826098,3987.9,3987.6,3.2078]
[1733581535189,0.17535,3987.7,3987.6,3.2078]
[1733581535685,0.17536,3987.6,3987.5,0.56636]
[1733581535890,1.08062098,3987.6,3987.5,0.56636]
[1733581536690,0.90526098,3987.6,3987.5,0.56636]
[1733581537081,1.08062098,3987.6,3987.5,0.56636]
[1733581539896,0.90526098,3987.6,3987.5,0.56636]
[1733581541682,1.08062098,3987.6,3987.5,0.56636]
[1733581551099,1.08062098,3987.6,3987.5,0.391]
[1733581551402,1.08062098,3987.6,3987.5,0.56636]
[1733581552804,0.90526098,3987.6,3987.5,0.56636]
[1733581552999,1.08062098,3987.6,3987.5,0.56636]
[1733581553507,6.54964815,3988.0,3987.5,0.391]
[1733581553800,0.673,3987.9,3987.8,0.17534]
[1733581554004,3.8808,3988.0,3987.9,0.17534]
[1733581554399,0.673,3988.0,3987.7,0.4056]
[1733581554711,0.84834,3988.0,3987.9,0.17534]
[1733581554894,1.57826098,3988.0,3987.9,0.17534]
[1733581555297,0.90526098,3988.0,3987.9,0.17534]
[1733581557100,1.08060098,3988.0,3987.9,0.58134]
[1733581557506,0.90526098,3988.0,3987.9,4.5112398]
[1733581558008,1.08060098,3988.0,3987.9,4.5112398]
[1733581558204,0.90526098,3988.0,3987.9,4.5112398]
[1733581558506,1.08060098,3988.0,3987.9,4.5112398]
[1733581558702,0.90526098,3988.0,3987.9,4.5112398]
[1733581558907,1.08060098,3988.0,3987.9,4.5112398]
[1733581560595,0.90526098,3988.0,3987.9,4.5112398]
[1733581561106,0.90526098,3988.0,3987.9,5.45673779]
[1733581561409,0.90526098,3988.0,3987.9,8.66453779]
[1733581561603,0.17532,3988.4,3988.3,0.17532]
[1733581561804,0.90526098,3988.4,3988.3,4.11513425]
[1733581562011,0.90526098,3988.4,3988.3,10.96074898]
[1733581562206,0.90526098,3988.4,3988.3,5.0510276]
[1733581562712,0.90526098,3988.4,3988.3,4.8757076]
[1733581563006,0.17532,3988.3,3988.2,6.0848178]
[1733581563203,0.17532,3988.3,3988.2,10.9605281]
[1733581563601,0.17532,3988.3,3988.2,0.17533]
[1733581563802,0.17533,3988.2,3988.1,0.17533]
[1733581565506,0.17533,3988.1,3988.0,4.51391361]
[1733581565803,1.08059098,3988.1,3988.0,0.3988]
[1733581566398,1.08059098,3988.1,3988.0,0.57414]
[1733581566808,1.08059098,3988.1,3988.0,0.3988]
[1733581567010,1.08059098,3988.1,3988.0,0.57414]
[1733581567212,0.90526098,3988.1,3988.0,0.57414]
[1733581567713,1.08059098,3988.1,3988.0,0.57414]
[1733581569512,0.17534,3988.0,3987.9,3.6138]
[1733581570110,0.17534,3988.0,3987.9,3.78914]
[1733581570810,0.17534,3988.0,3987.9,14.39850491]
[1733581571210,0.17534,3988.0,3987.9,8.48901711]
[1733581571505,0.17534,3988.0,3987.9,7.14729135]
[1733581571813,0.17534,3988.0,3987.9,3.2078]
[1733581572207,2.01660098,3988.1,3987.6,3.93949135]
[1733581572510,1.08061098,3987.7,3987.6,3.93949135]
[1733581573712,0.90526098,3987.7,3987.5,3.93949135]
[1733581573912,1.08061098,3987.7,3987.6,3.93949135]
[1733581574607,0.90526098,3987.7,3987.5,3.93949135]
[1733581574915,0.17536,3987.6,3987.5,3.93949135]
[1733581576814,0.17536,3987.5,3987.4,0.7839]
[1733581577406,0.17536,3987.5,3987.4,4.72372927]
[1733581577617,0.17536,3987.5,3987.4,0.7839]
[1733581577914,0.84836,3987.5,3987.4,5.65943183]
[1733581578518,0.84836,3987.5,3987.4,5.83479183]
[1733581578813,0.673,3987.5,3987.4,5.83479183]
[1733581579212,0.84836,3987.5,3987.4,5.83479183]
[1733581580312,0.58504,3987.9,3987.8,0.17535]
[1733581580514,0.84834,3987.9,3987.8,4.11479336]
[1733581581218,0.17535,3987.8,3987.7,4.11479336]
[1733581581409,0.17535,3987.8,3987.7,0.17535]
[1733581581610,0.17535,3987.8,3987.7,4.11476908]
[1733581581809,0.17535,3987.8,3987.7,5.05050272]
[1733581582211,0.17535,3987.8,3987.7,10.95966777]
[1733581582512,0.17535,3987.8,3987.7,5.05050272]
[1733581583213,0.17535,3987.8,3987.7,10.95966777]
[1733581583422,1.75360098,3987.9,3987.8,0.17535]
[1733581583621,1.75360098,3987.9,3987.8,4.11475727]
[1733581585915,0.90526098,3987.9,3987.8,0.17535]
[1733581586812,3.2078,3988.4,3987.8,0.17535]
[1733581586813,2.93324815,3988.5,3987.8,13.08299849]
[1733581587123,3.10855815,3988.6,3988.5,0.17532]
[1733581587614,0.17531,3988.6,3988.5,0.17532]
[1733581587815,3.10855815,3988.6,3988.5,0.17532]
[1733581588021,0.17531,3988.6,3988.5,0.17532]
[1733581588821,3.10855815,3988.6,3988.5,0.17532]
[1733581589117,0.17531,3988.6,3988.5,0.17532]
[1733581589824,0.17532,3988.5,3988.4,0.17532]
[1733581590026,1.47828098,3988.5,3988.4,0.17532]
[1733581590722,1.47828098,3988.5,3988.1,0.375]
[1733581590723,1.30296098,3988.5,3988.1,0.375]
[1733581590921,1.08059098,3988.2,3988.1,0.17533]
[1733581592523,0.90526098,3988.2,3988.1,0.17533]
[1733581592718,0.17532,3988.5,3988.4,0.17532]
[1733581592924,1.08058098,3988.5,3988.4,0.17532]
[1733581593128,0.17533,3988.3,3988.2,0.17532]
[1733581593832,0.17533,3988.3,3988.2,4.11464788]
[1733581594226,0.17533,3988.3,3988.2,0.17532]
[1733581594430,0.17533,3988.3,3988.2,5.04991555]
[1733581594629,0.17533,3988.3,3988.2,4.11410933]
[1733581595639,0.17533,3988.3,3988.2,4.11425036]
[1733581596143,0.17533,3988.3,3988.2,4.11420071]
[1733581596347,0.17533,3988.3,3988.2,4.11419147]
[1733581596637,0.17533,3988.3,3988.2,5.05028034]
[1733581597343,0.17532,3988.4,3988.3,0.17532]
[1733581597532,0.17532,3988.4,3988.3,4.11456489]
[1733581598532,0.17532,3988.4,3988.3,3.93924489]
[1733581598840,0.17532,3988.3,3988.2,3.93924489]
[1733581599036,0.17532,3988.3,3988.2,0.17533]
[1733581599540,0.17532,3988.3,3988.2,5.05140029]
[1733581601045,3.78155815,3988.7,3988.6,0.17531]
[1733581601239,1.75357098,3988.7,3988.6,0.17531]
[1733581601831,0.90526098,3988.7,3988.6,0.17531]
[1733581602038,3.8798,3988.9,3988.4,3.93989319]
[1733581602243,4.0551,3988.9,3988.8,0.1753]
[1733581602642,0.1753,3988.9,3988.8,0.1753]
[1733581602839,4.51050913,3989.1,3988.6,3.93989319]
[1733581603143,0.1753,3989.0,3988.9,0.17529]
[1733581605942,0.1753,3988.9,3988.8,0.1753]
[1733581606248,3.71754815,3989.2,3988.6,0.4087]
[1733581606444,3.71754815,3989.2,3988.6,0.584]
[1733581606445,1.08057098,3988.7,3988.6,0.584]
[1733581608949,1.08057098,3988.7,3988.6,4.52389319]
[1733581610346,0.90526098,3988.7,3988.6,4.52389319]
[1733581610754,1.08057098,3988.7,3988.6,0.584]
[1733581610941,1.08057098,3988.7,3988.6,4.51955382]
[1733581611149,1.08057098,3988.7,3988.6,4.519162]
[1733581612144,0.17531,3988.7,3988.6,4.519162]
[1733581613143,0.17531,3988.7,3988.6,0.584]
[1733581613349,0.90526098,3988.7,3988.4,0.4125]
[1733581613549,0.17532,3988.5,3988.4,0.4125]
[1733581614451,0.17532,3988.3,3988.2,7.552762]
[1733581614651,0.17532,3988.3,3988.2,3.6176]
[1733581615850,0.17532,3988.3,3988.2,3.2078]
[1733581617247,1.57726098,3988.4,3987.8,3.935162]
[1733581617450,0.90526098,3988.0,3987.7,7.318312]
[1733581617660,0.17535,3987.8,3987.7,3.38315]
[1733581618759,0.58504,3987.9,3987.8,0.17535]
[1733581618953,0.17534,3987.9,3987.8,0.17535]
[1733581620251,0.17534,3987.9,3987.8,4.110512]
[1733581620655,0.17534,3987.9,3987.7,3.2078]
[1733581620656,0.4097,3988.2,3987.7,7.142962]
[1733581620961,0.17534,3988.1,3988.0,0.17533]
[1733581621262,0.17534,3987.9,3987.8,0.55804]
[1733581622273,0.17534,3987.9,3987.8,4.493202]
[1733581622462,0.17534,3987.9,3987.7,3.2078]
[1733581622463,0.17535,3987.8,3987.7,3.2078]
[1733581623056,0.17535,3987.8,3987.7,3.38315]
[1733581623456,0.17535,3987.8,3987.7,3.2078]
[1733581623858,0.17535,3987.8,3987.7,3.38315]
[1733581624059,0.17535,3987.8,3987.7,8.255959]
[1733581624360,0.4048,3987.9,3987.7,3.93792238]
[1733581624659,0.17535,3987.8,3987.7,3.93792337]
[1733581624858,0.17535,3987.8,3987.7,5.04863934]
[1733581625061,0.17535,3987.8,3987.7,0.17535]
[1733581625272,0.17535,3987.8,3987.7,4.87382776]
[1733581625563,0.4048,3987.9,3987.7,3.93835711]
[1733581625754,0.17535,3987.8,3987.7,3.93835711]
[1733581626164,0.4048,3987.9,3987.7,4.87427089]
[1733581626459,0.58014,3987.9,3987.8,3.93866125]
[1733581627357,0.17535,3987.8,3987.7,3.93866125]
[1733581628766,0.17535,3987.8,3987.7,4.11401125]
[1733581629058,0.17535,3987.8,3987.7,3.93866125]
[1733581633264,0.17535,3987.8,3987.7,4.11401125]
[1733581633465,0.17535,3987.8,3987.7,5.04882567]
[1733581633664,0.17535,3987.8,3987.7,5.04888466]
[1733581634864,0.672,3988.1,3987.7,13.99049971]
[1733581635070,3.2078,3988.5,3987.7,13.99049971]
[1733581635071,0.4033,3988.4,3987.9,3.93770503]
[1733581635256,0.17533,3988.2,3988.1,0.17533]
[1733581635462,0.17533,3988.1,3988.0,4.11303503]
[1733581636459,0.17533,3988.1,3988.0,0.17533]
[1733581636656,0.17533,3988.1,3988.0,5.04820277]
[1733581636854,0.17533,3988.2,3988.1,0.17533]
[1733581637062,0.17533,3988.2,3988.1,4.11272501]
[1733581637269,1.08059098,3988.4,3988.3,0.17532]
[1733581638766,1.08059098,3988.4,3988.2,0.57123]
[1733581638767,0.17532,3988.3,3988.2,0.57123]
[1733581639458,0.17532,3988.3,3988.2,0.3959]
[1733581639970,0.17532,3988.3,3988.2,0.57123]
[1733581640764,0.672,3988.5,3988.2,0.3959]
[1733581640971,0.17532,3988.4,3988.3,0.17532]
[1733581641558,0.672,3988.5,3988.2,0.3959]
[1733581641758,0.672,3988.5,3988.3,0.17532]
[1733581641759,0.17532,3988.4,3988.3,0.17532]
[1733581643963,0.90526098,3988.6,3988.2,0.3959]
[1733581644169,1.08057098,3988.6,3988.5,0.17532]
[1733581645474,4.90023889,3988.8,3988.2,0.3959]
[1733581645475,5.13349987,3988.8,3988.3,0.90526098]
[1733581645672,5.13349987,3988.8,3988.6,0.17531]
[1733581645673,0.17531,3988.7,3988.6,0.17531]
[1733581647779,0.17531,3988.6,3988.5,4.11270501]
[1733581648367,1.92569987,3988.8,3988.6,0.17531]
[1733581648368,0.17531,3988.7,3988.6,0.17531]
[1733581648582,1.92569987,3988.8,3988.5,3.93739501]
[1733581648583,1.02043889,3988.8,3988.7,0.17531]
[1733581648772,1.19573889,3988.8,3988.7,0.17531]
[1733581649369,0.19693889,3988.8,3988.7,0.17531]
[1733581649570,0.1753,3988.9,3988.7,4.87206124]
[1733581649770,0.1753,3988.9,3988.8,4.49872871]
[1733581650684,0.1753,3988.9,3988.8,4.32342871]
[1733581650877,0.1753,3988.9,3988.8,0.3868]
[1733581651277,3.6079,3989.2,3989.0,0.17529]
[1733581651480,0.4079,3989.4,3989.3,0.17528]
[1733581651682,0.17528,3989.3,3989.2,3.93662871]
[1733581651979,0.17528,3989.2,3989.1,1.47655098]
[1733581652179,0.17528,3989.2,3989.1,5.41197864]
[1733581652380,0.17528,3989.2,3989.1,6.34725265]
[1733581652583,0.17528,3989.2,3989.1,1.47655098]
[1733581652878,1.08054098,3989.2,3989.1,3.93546509]
[1733581653077,0.90526098,3989.2,3988.8,0.3868]
[1733581653383,0.1753,3988.9,3988.8,0.3868]
[1733581656279,0.17531,3988.6,3988.4,5.90916505]
[1733581656581,0.17532,3988.5,3988.4,4.92051724]
[1733581658085,0.17532,3988.5,3988.4,0.98452]
[1733581658284,0.17532,3988.5,3988.4,5.85634212]
[1733581658480,0.17532,3988.5,3988.4,5.85635835]
[1733581659079,0.17532,3988.5,3988.4,4.92104888]
[1733581659285,0.17532,3988.5,3988.4,0.98452]
[1733581659586,0.3816,3988.8,3988.4,0.8092]
[1733581659788,0.3816,3988.8,3988.5,4.11197118]
[1733581659789,0.17532,3988.6,3988.5,4.11197118]
[1733581661191,0.17532,3988.6,3988.5,0.17531]
[1733581664188,0.17532,3988.5,3988.4,0.98452]
[1733581668603,0.17531,3988.7,3988.6,0.17531]
[1733581669197,0.17531,3988.7,3988.6,4.11197118]
[1733581669702,0.17531,3988.7,3988.6,0.17531]
[1733581669995,0.17531,3988.7,3988.6,4.11136251]
[1733581670201,0.17531,3988.7,3988.6,0.17531]
[1733581670509,0.3816,3988.8,3988.5,5.90916505]
[1733581670696,0.55691,3988.8,3988.7,4.11146303]
[1733581673197,0.3816,3988.8,3988.7,5.04737891]
[1733581673401,0.1753,3988.9,3988.8,0.1753]
[1733581673599,3.2078,3989.7,3988.8,3.2078]
[1733581673909,0.17528,3989.4,3989.3,0.17528]
[1733581674902,0.17528,3989.4,3989.3,5.04722869]
[1733581675098,0.56248,3989.4,3989.3,4.11170338]
[1733581675610,0.56248,3989.4,3989.3,3.93642338]
[1733581675900,0.17528,3989.2,3989.1,0.3743]
[1733581676105,0.17528,3989.2,3989.1,0.54959]
[1733581676307,0.17529,3989.1,3989.0,4.11171338]
[1733581676797,0.17528,3989.2,3989.1,0.17528]
[1733581677301,0.3872,3989.4,3989.1,3.93642338]
[1733581677502,0.56248,3989.4,3989.3,0.17528]
[1733581679501,2.93877462,3989.8,3989.3,3.2078]
[1733581679803,0.17524,3990.4,3990.3,0.17524]
[1733581680000,0.58624,3990.4,3990.3,0.17524]
[1733581680407,0.98164,3990.4,3990.3,0.17524]
[1733581680603,0.8064,3990.4,3990.3,0.17524]
[1733581680903,0.98163,3990.4,3990.3,0.17524]
[1733581681510,0.8064,3990.4,3990.3,0.17524]
[1733581681817,0.98163,3990.4,3990.3,0.17524]
[1733581682000,0.8064,3990.4,3990.3,0.17524]
[1733581683503,0.98163,3990.4,3990.3,0.17524]
[1733581683902,0.17524,3990.3,3990.2,0.17524]
[1733581684098,0.8064,3990.4,3990.1,4.31334931]
[1733581684099,0.98163,3990.4,3990.3,0.17524]
[1733581685111,0.8064,3990.4,3990.1,0.3776]
[1733581685610,0.17524,3990.2,3990.1,0.55284]
[1733581685805,0.17524,3990.3,3990.2,0.17524]
[1733581686913,0.98163,3990.4,3990.3,0.17524]
[1733581687309,1.71166098,3990.4,3990.0,0.17525]
[1733581687505,0.17526,3989.8,3989.7,3.38306]
[1733581687705,0.17526,3989.9,3989.8,0.17525]
[1733581688501,0.58266,3989.9,3989.8,0.17525]
[1733581689206,0.17526,3989.8,3989.7,3.38306]
[1733581689409,0.58406,3989.8,3989.7,3.38306]
[1733581689907,0.4088,3989.8,3989.7,3.38306]
[1733581690109,0.58406,3989.8,3989.7,3.38306]
[1733581693610,1.48932098,3989.8,3989.7,3.2078]
[1733581693814,0.17528,3989.4,3989.3,3.2078]
[1733581694412,0.55798,3989.4,3989.3,3.2078]
[1733581694614,0.55798,3989.4,3989.2,0.17528]
[1733581694615,0.3827,3989.4,3989.2,0.17528]
[1733581694817,0.17528,3989.3,3989.2,0.17528]
[1733581696914,0.17528,3989.2,3989.1,0.57279]
[1733581697109,0.56018,3989.2,3989.1,0.57279]
[1733581697308,0.17528,3989.2,3989.1,0.57279]
[1733581699118,0.17528,3989.2,3989.1,0.17529]
[1733581701017,0.4071,3989.4,3988.9,3.978]
[1733581701216,0.17529,3989.2,3989.1,0.17528]
[1733581701420,0.4071,3989.4,3989.2,0.17528]
[1733581701421,0.17528,3989.3,3989.2,0.17528]
[1733581702324,0.58238,3989.4,3989.3,0.17528]
[1733581702817,0.4071,3989.4,3989.3,0.17528]
[1733581703013,3.2078,3990.0,3989.1,5.27924029]
[1733581703219,0.17526,3989.8,3989.7,0.17526]
[1733581703616,0.671,3989.9,3989.3,3.2078]
[1733581703824,0.17527,3989.7,3989.6,0.17526]
[1733581704318,3.2078,3990.0,3989.3,3.2078]
[1733581704524,0.17525,3989.9,3989.8,0.17525]
[1733581705924,0.17526,3989.8,3989.7,0.17526]
[1733581708924,0.17526,3989.9,3989.8,0.17525]
[1733581712832,0.17526,3989.8,3989.7,0.17526]
[1733581716231,0.17526,3989.8,3989.7,4.11100931]
[1733581716619,0.17526,3989.8,3989.7,3.93574931]
[1733581716620,1.08052098,3989.8,3989.7,3.93574931]
[1733581716824,0.90526098,3989.8,3989.3,3.93574931]
[1733581717131,0.17528,3989.4,3989.3,0.17528]
[1733581717331,0.55058,3989.4,3989.3,0.17528]
[1733581718129,0.55058,3989.4,3989.3,5.05280606]
[1733581718436,0.55058,3989.4,3989.3,5.05269305]
[1733581719324,0.55058,3989.4,3989.3,10.95733423]
[1733581719527,0.17528,3989.4,3989.3,10.95733423]
[1733581720130,0.17528,3989.4,3989.3,5.05334815]
[1733581720332,0.90526098,3989.5,3989.2,5.90464118]
[1733581720535,0.17528,3989.4,3989.3,4.1116168]
[1733581721130,0.17528,3989.4,3989.3,0.17528]
[1733581721638,0.90526098,3989.5,3989.2,4.1116168]
[1733581721639,0.17528,3989.3,3989.2,4.1116168]
[1733581722937,0.90526098,3989.5,3989.2,4.1116168]
[1733581723134,0.17528,3989.4,3989.3,0.17528]
[1733581724548,0.17528,3989.5,3989.4,0.17527]
[1733581724846,1.30186098,3989.6,3989.2,3.9363368]
[1733581725045,0.17528,3989.4,3989.3,0.17528]
[1733581727947,1.30186098,3989.6,3989.1,4.4922268]
[1733581728138,0.17528,3989.2,3989.1,0.55589]
[1733581728339,0.17528,3989.2,3989.1,5.43464762]
[1733581729042,0.17528,3989.2,3989.1,0.55589]
[1733581731552,0.17528,3989.2,3989.1,4.49271853]
[1733581732136,0.17528,3989.2,3989.1,0.55589]
[1733581733145,0.17528,3989.2,3989.1,4.49271853]
[1733581735148,0.17528,3989.2,3989.1,0.55589]
[1733581735548,0.17528,3989.2,3989.1,4.49271853]
[1733581735750,0.17528,3989.2,3989.1,0.55589]
[1733581736057,0.17528,3989.2,3989.1,5.43857653]
[1733581737149,0.17528,3989.2,3989.1,11.34879755]
[1733581742152,0.17528,3989.2,3989.1,11.17350755]
[1733581742662,1.08054098,3989.2,3989.1,3.94073566]
[1733581742856,0.17529,3989.1,3989.0,4.34623566]
[1733581743049,0.17529,3989.1,3989.0,3.94073566]
[1733581743050,0.55419,3989.1,3989.0,3.94073566]
[1733581743254,0.17529,3989.0,3988.9,3.94073566]
[1733581743455,0.55159,3989.0,3988.9,3.94073566]
[1733581745249,0.1753,3988.9,3988.8,3.94073566]
[1733581749160,0.3763,3989.0,3988.7,0.3986]
[1733581749161,0.3763,3989.0,3988.7,4.33933566]
[1733581749466,0.1753,3988.8,3988.7,0.3986]
[1733581749771,0.1753,3988.8,3988.7,5.27943976]
[1733581750865,0.1753,3988.8,3988.7,5.27917319]
[1733581751166,0.1753,3988.8,3988.7,0.3986]
[1733581754261,1.57526098,3988.9,3988.4,4.34264276]
[1733581754461,0.17532,3988.5,3988.4,4.72544464]
[1733581756369,0.55562,3988.5,3988.4,4.72544464]
[1733581757573,0.55562,3988.5,3988.4,0.7869]
[1733581758864,0.55562,3988.5,3988.4,4.72544464]
[1733581759171,0.55562,3988.5,3988.4,11.57829157]
[1733581760864,0.55562,3988.5,3988.4,11.75361157]
[1733581761060,0.55562,3988.5,3988.4,5.66807055]
[1733581761260,0.55562,3988.5,3988.4,11.57729681]
[1733581762374,0.55562,3988.5,3988.4,11.57783892]
[1733581762579,0.55562,3988.5,3988.4,11.57896492]
[1733581763786,0.55562,3988.5,3988.4,5.66919655]
[1733581764572,0.55562,3988.5,3988.4,11.57862326]
[1733581765179,0.55562,3988.5,3988.4,11.75394326]
[1733581765371,0.55562,3988.5,3988.4,5.84451655]
[1733581766581,0.55562,3988.5,3988.4,0.96222]
[1733581767892,0.55562,3988.5,3988.4,4.90203121]
[1733581768387,0.17532,3988.5,3988.4,4.90203121]
[1733581768593,0.17532,3988.5,3988.4,4.90198658]
[1733581768885,0.90526098,3988.6,3988.5,0.17531]
[1733581768886,0.17531,3988.6,3988.5,0.17531]
[1733581769093,0.1753,3988.9,3988.5,3.93976658]
[1733581769286,0.1753,3988.9,3988.8,0.1753]
[1733581770184,0.1753,3989.0,3988.9,0.17529]
[1733581770411,0.1753,3988.9,3988.8,0.1753]
[1733581770587,0.1753,3988.9,3988.8,4.11506658]
[1733581770793,0.1753,3988.9,3988.8,0.1753]
[1733581771395,0.1753,3988.9,3988.8,4.11506658]
[1733581771798,3.2078,3989.2,3988.8,3.93976658]
[1733581772001,3.8440356,3989.5,3989.0,3.93976658]
[1733581772295,0.17528,3989.3,3989.2,0.17528]
[1733581772495,0.67,3989.4,3989.1,4.74406658]
[1733581772691,1.08054098,3989.2,3989.1,0.97959]
[1733581774198,1.08054098,3989.2,3989.1,4.91935658]
[1733581775393,0.17528,3989.2,3989.1,4.91935658]
[1733581776496,0.17528,3989.2,3989.1,4.74406658]
[1733581776795,0.17528,3989.2,3989.1,4.91935658]
[1733581779098,0.17528,3989.2,3989.1,0.8043]
[1733581779591,0.17528,3989.2,3989.1,0.97959]
[1733581779798,0.17528,3989.2,3989.1,4.92020414]
[1733581780185,0.17528,3989.2,3989.1,5.86318672]
[1733581780388,0.17528,3989.4,3989.3,0.17528]
[1733581780590,0.17528,3989.4,3989.3,3.94071957]
[1733581780799,0.17528,3989.4,3989.3,4.88354131]
[1733581781505,0.17528,3989.3,3989.2,4.11584428]
[1733581784491,0.17528,3989.3,3989.2,3.94056428]